[Event "EYTCC U12 Open 2019"]
[Site "Pardubice"]
[Date "2019.07.14"]
[Round "4.6"]
[White "Vagman, Roy"]
[Black "Makkar, Rajat"]
[Result "1-0"]
[ECO "C44"]
[WhiteElo "1941"]
[BlackElo "2064"]
[Annotator "NA"]
[PlyCount "125"]
[EventDate "2019.07.11"]
[EventType "swiss"]
[EventCountry "CZE"]
[SourceTitle "playchess.com"]
[Source "ChessBase"]
[SourceQuality "1"]
[WhiteTeam "Israel"]
[BlackTeam "France"]
[WhiteTeamCountry "ISR"]
[BlackTeamCountry "FRA"]
[TimeControl "40/5400+30:1800+30"]

1. e4 {[%emt 0:00:00]} e5 {[%emt 0:00:00]} 2. Nf3 {[%emt 0:00:00]} Nc6 {[%emt 0:00:00]} 3. d4 {[%emt 0:00:17]} exd4 {[%emt 0:00:08]} 4. Nxd4 {[%emt 0:00:27]} Qf6 {[%emt 0:00:34]} 5. Nb5 {[%emt 0:00:41]} Bc5 {[%emt 0:02:10]} 6. Qf3 {[%emt 0:00:19]} Nd4 {[%emt 0:13:22]} 7. Nxd4 {[%emt 0:11:47]} Bxd4 {[%emt 0:01:00]} 8. c3 {[%emt 0:00:37]} Qxf3 {[%emt 0:00:58]} 9. gxf3 {[%emt 0:00:10]} Bb6 {[%emt 0:00:24]} 10. Rg1 {[%emt 0:01:11]} g6 {[%emt 0:03:27]} 11. a4 {[%emt 0:02:35]} a6 {[%emt 0:01:57]} 12. Na3 {[%emt 0:00:44]} Ne7 {[%emt 0:02:21]} 13. Bc4 {[%emt 0:08:26]} d6 {[%emt 0:03:43]} 14. Bg5 {[%emt 0:01:49]} Be6 {[%emt 0:02:59]} 15. h4 {[%emt 0:02:58]} Nc6 {[%emt 0:04:53]} 16. Ke2 {[%emt 0:04:38]} O-O {[%emt 0:03:15]} 17. Bxe6 {[%emt 0:05:43]} fxe6 {[%emt 0:00:45]} 18. h5 {[%emt 0:01:31]} Rf7 {[%emt 0:05:40]} 19. hxg6 {[%emt 0:03:33]} hxg6 {[%emt 0:00:27]} 20. Nc4 {[%emt 0:09:04]} Ba7 {[%emt 0:01:42]} 21. Ne3 {[%emt 0:01:38]} Bxe3 {[%emt 0:01:33]} 22. Bxe3 {[%emt 0:00:28]} Kg7 {[%emt 0:01:02]} 23. Rg3 {[%emt 0:00:25]} e5 {[%emt 0:02:41]} 24. Rh1 {[%emt 0:00:38]} Rg8 {[%emt 0:03:19]} 25. Rh6 {[%emt 0:05:41]} Rf6 {[%emt 0:04:25]} 26. Bg5 {[%emt 0:00:40]} Rf7 {[%emt 0:01:34]} 27. b4 {[%emt 0:05:21]} Nd8 {[%emt 0:02:35]} 28. Be3 {[%emt 0:08:52]} Rf6 {[%emt 0:01:40]} 29. Rgh3 {[%emt 0:00:34]} Nf7 {[%emt 0:02:35]} 30. Rh7+ {[%emt 0:01:15]} Kf8 {[%emt 0:00:17]} 31. b5 {[%emt 0:03:05]} g5 {[%emt 0:04:03]} 32. Rg3 {[%emt 0:00:37]} Rfg6 {[%emt 0:00:42]} 33. bxa6 {[%emt 0:01:31]} bxa6 {[%emt 0:00:08]} 34. Rg1 {[%emt 0:00:33]} R8g7 {[%emt 0:02:00]} 35. Rh5 {[%emt 0:00:46]} Ke7 {[%emt 0:03:25]} 36. Rb1 {[%emt 0:00:54]} Nd8 {[%emt 0:01:34]} 37. Rb8 {[%emt 0:00:59]} Nc6 {[%emt 0:04:00]} 38. Ra8 {[%emt 0:00:51]} a5 {[%emt 0:00:20]} 39. Rhh8 {[%emt 0:01:15]} Kd7 {[%emt 0:00:42]} 40. Kd3 {[%emt 0:01:38]} Rf7 {[%emt 0:00:52]} 41. Kc4 {[%emt 0:31:10]} g4 {[%emt 0:32:03]} 42. Raf8 {[%emt 0:05:28]} Rxf3 {[%emt 0:01:40]} 43. Rh7+ {[%emt 0:01:14]} Ne7 {[%emt 0:00:30]} 44. Rxf3 {[%emt 0:00:23]} gxf3 {[%emt 0:00:18]} 45. Kb5 {[%emt 0:01:05]} Re6 {[%emt 0:07:38]} 46. Rf7 {[%emt 0:02:40]} Kc8 {[%emt 0:01:45]} 47. Kxa5 {[%emt 0:00:44]} Kb7 {[%emt 0:00:25]} 48. Kb5 {[%emt 0:02:32]} d5 {[%emt 0:00:42]} 49. Bc5 {[%emt 0:01:15]} Nc8 {[%emt 0:08:38]} 50. exd5 {[%emt 0:00:36]} Rb6+ {[%emt 0:00:44]} 51. Kc4 {[%emt 0:01:09]} Ra6 {[%emt 0:00:39]} 52. a5 {[%emt 0:00:43]} e4 {[%emt 0:01:00]} 53. Kd4 {[%emt 0:00:30]} Rxa5 {[%emt 0:00:00]} 54. d6 {[%emt 0:00:00]} Rxc5 {[%emt 0:00:00]} 55. Kxc5 {[%emt 0:00:00]} Nxd6 {[%emt 0:00:00]} 56. Re7 {[%emt 0:00:00]} Kc8 {[%emt 0:00:00]} 57. Kc6 {[%emt 0:00:00]} Kd8 {[%emt 0:00:00]} 58. Rxc7 {[%emt 0:00:00]} Nc4 {[%emt 0:00:00]} 59. Rd7+ {[%emt 0:00:00]} Ke8 {[%emt 0:00:00]} 60. Rd4 {[%emt 0:00:00]} e3 {[%emt 0:00:00]} 61. Rxc4 {[%emt 0:00:00]} exf2 {[%emt 0:00:00]} 62. Re4+ {[%emt 0:00:00]} Kd8 {[%emt 0:00:00]} 63. Rd4+ {[%emt 0:00:00]} 1-0

[Event "EYTCC U12 Open 2019"]
[Site "Pardubice"]
[Date "2019.07.14"]
[Round "4.7"]
[White "Mekhane, Adam"]
[Black "Uritsky, Yonathan"]
[Result "1-0"]
[ECO "B39"]
[WhiteElo "2040"]
[BlackElo "2040"]
[Annotator "NA"]
[PlyCount "91"]
[EventDate "2019.07.11"]
[EventType "swiss"]
[EventCountry "CZE"]
[SourceTitle "playchess.com"]
[Source "ChessBase"]
[SourceQuality "1"]
[WhiteTeam "France"]
[BlackTeam "Israel"]
[WhiteTeamCountry "FRA"]
[BlackTeamCountry "ISR"]
[TimeControl "40/5400+30:1800+30"]

1. e4 {[%emt 0:00:00]} c5 {[%emt 0:00:00]} 2. Nf3 {[%emt 0:00:00]} Nc6 {[%emt 0:00:10]} 3. d4 {[%emt 0:00:05]} cxd4 {[%emt 0:00:07]} 4. Nxd4 {[%emt 0:00:04]} g6 {[%emt 0:00:16]} 5. c4 {[%emt 0:01:28]} Bg7 {[%emt 0:00:12]} 6. Be3 {[%emt 0:00:17]} Nf6 {[%emt 0:00:30]} 7. Nc3 {[%emt 0:00:08]} Ng4 {[%emt 0:00:36]} 8. Qxg4 {[%emt 0:02:03]} Nxd4 {[%emt 0:00:12]} 9. Qd1 {[%emt 0:00:18]} e5 {[%emt 0:01:06]} 10. Bxd4 {[%emt 0:06:08]} exd4 {[%emt 0:00:09]} 11. Nd5 {[%emt 0:00:23]} O-O {[%emt 0:03:29]} 12. Bd3 {[%emt 0:03:36]} d6 {[%emt 0:02:18]} 13. O-O {[%emt 0:03:24]} Be6 {[%emt 0:02:46]} 14. a4 {[%emt 0:09:24]} Rc8 {[%emt 0:03:13]} 15. a5 {[%emt 0:04:37]} Qd7 {[%emt 0:10:28]} 16. Qf3 {[%emt 0:09:04]} f5 {[%emt 0:06:31]} 17. exf5 {[%emt 0:10:27]} Bxf5 {[%emt 0:01:20]} 18. Bxf5 {[%emt 0:03:39]} Rxf5 19. Qd3 {[%emt 0:00:56]} Re8 {[%emt 0:03:30]} 20. a6 {[%emt 0:04:16]} b5 {[%emt 0:05:17]} 21. Ra5 {[%emt 0:07:52]} bxc4 {[%emt 0:02:20]} 22. Qxc4 {[%emt 0:00:14]} Qe6 {[%emt 0:02:43]} 23. Qc6 {[%emt 0:09:40]} Qe1 {[%emt 0:15:03]} 24. Ra1 {[%emt 0:04:20]} Qe6 {[%emt 0:09:03]} 25. Nc7 {[%emt 0:04:02]} Rc8 {[%emt 0:01:34]} 26. Qb7 {[%emt 0:02:19]} Qd7 {[%emt 0:00:48]} 27. Nd5 {[%emt 0:00:39]} Rf7 {[%emt 0:01:33]} 28. Rfe1 {[%emt 0:01:59]} Qxb7 {[%emt 0:03:15]} 29. axb7 {[%emt 0:00:33]} Rxb7 {[%emt 0:03:39]} 30. Ne7+ {[%emt 0:00:34]} Rxe7 {[%emt 0:00:18]} 31. Rxe7 {[%emt 0:00:05]} d3 {[%emt 0:00:16]} 32. Rd1 {[%emt 0:06:08]} d2 {[%emt 0:01:13]} 33. Kf1 {[%emt 0:01:31]} Bxb2 {[%emt 0:01:50]} 34. Rxd2 {[%emt 0:00:42]} Rc1+ {[%emt 0:01:59]} 35. Ke2 {[%emt 0:00:04]} Bc3 {[%emt 0:00:23]} 36. Rd1 {[%emt 0:00:36]} Rxd1 {[%emt 0:00:36]} 37. Kxd1 {[%emt 0:00:01]} Bd4 {[%emt 0:00:29]} 38. f3 {[%emt 0:03:20]} a5 {[%emt 0:01:31]} 39. Kc2 {[%emt 0:01:36]} Bc5 {[%emt 0:01:28]} 40. Kb3 {[%emt 0:02:21]} h6 {[%emt 0:01:08]} 41. Ka4 {[%emt 0:04:37]} Bb4 {[%emt 0:00:20]} 42. Ra7 {[%emt 0:01:44]} Kf8 {[%emt 0:00:27]} 43. Kb5 {[%emt 0:01:01]} h5 {[%emt 0:01:12]} 44. Kc6 {[%emt 0:03:43]} g5 {[%emt 0:00:18]} 45. Kd5 {[%emt 0:00:33]} g4 {[%emt 0:00:28]} 46. f4 {[%emt 0:00:34]} 1-0

[Event "EYTCC U12 Open 2019"]
[Site "Pardubice"]
[Date "2019.07.14"]
[Round "4.8"]
[White "Tsirilman, Guy"]
[Black "Bat, Bilguun"]
[Result "0-1"]
[ECO "B28"]
[WhiteElo "1792"]
[BlackElo "2093"]
[Annotator "NA"]
[PlyCount "102"]
[EventDate "2019.07.11"]
[EventType "swiss"]
[EventCountry "CZE"]
[SourceTitle "playchess.com"]
[Source "ChessBase"]
[SourceQuality "1"]
[WhiteTeam "Israel"]
[BlackTeam "France"]
[WhiteTeamCountry "ISR"]
[BlackTeamCountry "FRA"]
[TimeControl "40/5400+30:1800+30"]

1. e4 {[%emt 0:00:00]} c5 {[%emt 0:00:00]} 2. Nf3 {[%emt 0:00:13]} a6 {[%emt 0:00:00]} 3. c3 {[%emt 0:01:09]} e6 {[%emt 0:00:27]} 4. d4 {[%emt 0:04:20]} d5 {[%emt 0:01:02]} 5. Bd3 {[%emt 0:01:39]} dxe4 {[%emt 0:05:12]} 6. Bxe4 {[%emt 0:00:37]} Nf6 {[%emt 0:00:14]} 7. Bg5 {[%emt 0:02:16]} Be7 {[%emt 0:00:19]} 8. Bxf6 {[%emt 0:01:11]} Bxf6 {[%emt 0:00:08]} 9. dxc5 {[%emt 0:03:17]} Qc7 {[%emt 0:09:48]} 10. O-O {[%emt 0:02:02]} Qxc5 {[%emt 0:06:02]} 11. Qc2 {[%emt 0:02:36]} h6 {[%emt 0:02:38]} 12. Nbd2 {[%emt 0:02:17]} O-O {[%emt 0:01:00]} 13. Nb3 {[%emt 0:02:32]} Qc7 {[%emt 0:01:50]} 14. Nfd4 {[%emt 0:01:26]} Bd7 {[%emt 0:01:12]} 15. Rad1 {[%emt 0:02:08]} Nc6 {[%emt 0:08:05]} 16. Nxc6 {[%emt 0:02:23]} Bxc6 {[%emt 0:00:07]} 17. Nd4 {[%emt 0:00:07]} Bxe4 {[%emt 0:02:07]} 18. Qxe4 {[%emt 0:00:05]} Rfd8 {[%emt 0:00:21]} 19. Nb3 {[%emt 0:06:55]} Rac8 {[%emt 0:06:12]} 20. h3 {[%emt 0:01:31]} b5 {[%emt 0:01:53]} 21. a3 {[%emt 0:01:46]} Qb6 {[%emt 0:01:06]} 22. Qe3 {[%emt 0:03:25]} Qc6 {[%emt 0:04:30]} 23. Rxd8+ {[%emt 0:06:26]} Rxd8 {[%emt 0:00:13]} 24. Qc5 {[%emt 0:00:06]} Qe4 {[%emt 0:12:12]} 25. Qb6 {[%emt 0:13:47]} Qc2 {[%emt 0:02:53]} 26. Nc5 {[%emt 0:05:06]} Qxb2 {[%emt 0:04:01]} 27. Nxa6 {[%emt 0:05:14]} Qxa3 {[%emt 0:02:30]} 28. Qxb5 {[%emt 0:01:18]} Qxc3 {[%emt 0:00:22]} 29. Qb4 {[%emt 0:01:27]} Qc6 {[%emt 0:02:21]} 30. Nb8 {[%emt 0:13:48]} Qa8 {[%emt 0:00:34]} 31. Rb1 {[%emt 0:00:50]} Be5 {[%emt 0:00:22]} 32. Qc5 {[%emt 0:00:25]} Rxb8 {[%emt 0:00:11]} 33. Rd1 {[%emt 0:01:30]} Bf6 {[%emt 0:00:08]} 34. Qc7 {[%emt 0:00:43]} Rd8 {[%emt 0:00:14]} 35. Rxd8+ {[%emt 0:00:06]} Qxd8 {[%emt 0:00:04]} 36. Qxd8+ {[%emt 0:00:04]} Bxd8 {[%emt 0:00:04]} 37. g4 {[%emt 0:00:01]} g5 {[%emt 0:00:07]} 38. Kg2 {[%emt 0:00:04]} Kg7 {[%emt 0:00:05]} 39. Kf3 {[%emt 0:00:11]} f5 {[%emt 0:00:04]} 40. gxf5 {[%emt 0:00:24]} exf5 {[%emt 0:00:05]} 41. h4 {[%emt 0:30:03]} gxh4 {[%emt 0:30:06]} 42. Kg2 {[%emt 0:00:12]} Kf6 {[%emt 0:00:04]} 43. Kh3 {[%emt 0:00:14]} Kg5 {[%emt 0:00:05]} 44. Kh2 {[%emt 0:00:21]} Kg4 {[%emt 0:00:08]} 45. Kg2 {[%emt 0:00:06]} h3+ {[%emt 0:00:07]} 46. Kh1 {[%emt 0:00:07]} Bc7 {[%emt 0:00:06]} 47. Kg1 {[%emt 0:00:07]} Kf3 {[%emt 0:00:12]} 48. Kh1 {[%emt 0:00:04]} Bb6 {[%emt 0:00:13]} 49. Kg1 {[%emt 0:00:17]} Bxf2+ {[%emt 0:00:06]} 50. Kh1 {[%emt 0:00:06]} Ba7 {[%emt 0:00:14]} 51. Kh2 {[%emt 0:00:19]} Ke2 {[%emt 0:00:04]} 0-1

[Event "EYTCC U12 Open 2019"]
[Site "Pardubice"]
[Date "2019.07.14"]
[Round "4.9"]
[White "Tarhan, Adar"]
[Black "Smolik, Jachym"]
[Result "0-1"]
[ECO "B40"]
[WhiteElo "1972"]
[BlackElo "1757"]
[Annotator "NA"]
[PlyCount "172"]
[EventDate "2019.07.11"]
[EventType "swiss"]
[EventCountry "CZE"]
[SourceTitle "playchess.com"]
[Source "ChessBase"]
[SourceQuality "1"]
[WhiteTeam "Turkey"]
[BlackTeam "Czech Republic"]
[WhiteTeamCountry "TUR"]
[BlackTeamCountry "CZE"]
[TimeControl "40/5400+30:1800+30"]

1. e4 {[%emt 0:00:00]} c5 {[%emt 0:00:00]} 2. Nf3 {[%emt 0:00:00]} e6 {[%emt 0:00:00]} 3. d4 {[%emt 0:00:04]} cxd4 {[%emt 0:00:00]} 4. Nxd4 {[%emt 0:00:04]} Qb6 {[%emt 0:00:00]} 5. Nc3 {[%emt 0:00:29]} Bc5 {[%emt 0:00:03]} 6. Na4 {[%emt 0:01:44]} Qa5+ {[%emt 0:00:10]} 7. c3 {[%emt 0:00:05]} Bxd4 {[%emt 0:00:08]} 8. Qxd4 {[%emt 0:00:21]} Nf6 {[%emt 0:00:40]} 9. Nc5 {[%emt 0:05:10]} b6 {[%emt 0:13:09]} 10. Nb3 {[%emt 0:00:30]} Qh5 {[%emt 0:00:06]} 11. Be2 {[%emt 0:00:31]} Qg6 {[%emt 0:00:21]} 12. Bf3 {[%emt 0:01:12]} Bb7 {[%emt 0:01:05]} 13. Nd2 {[%emt 0:00:32]} O-O {[%emt 0:08:59]} 14. O-O {[%emt 0:00:57]} Nc6 {[%emt 0:00:43]} 15. Qd6 {[%emt 0:01:25]} Rad8 {[%emt 0:05:00]} 16. Re1 {[%emt 0:03:14]} Ne8 {[%emt 0:01:06]} 17. Qf4 {[%emt 0:01:06]} f5 {[%emt 0:09:14]} 18. e5 {[%emt 0:01:24]} d6 {[%emt 0:12:06]} 19. exd6 {[%emt 0:00:44]} Nxd6 {[%emt 0:02:02]} 20. Qg3 {[%emt 0:04:37]} Qf6 {[%emt 0:03:11]} 21. Nf1 {[%emt 0:02:38]} f4 {[%emt 0:00:57]} 22. Qh3 {[%emt 0:01:22]} Rde8 {[%emt 0:04:07]} 23. b3 {[%emt 0:04:13]} Nf7 {[%emt 0:06:31]} 24. Qh5 {[%emt 0:14:42]} Ng5 {[%emt 0:04:39]} 25. Bxc6 {[%emt 0:02:36]} Bxc6 {[%emt 0:00:03]} 26. Ba3 {[%emt 0:01:35]} Rf7 {[%emt 0:00:51]} 27. Nd2 {[%emt 0:04:33]} Qf5 {[%emt 0:00:58]} 28. Qh4 {[%emt 0:01:54]} Rf6 {[%emt 0:00:39]} 29. f3 {[%emt 0:00:38]} Rg6 {[%emt 0:03:43]} 30. Kh1 {[%emt 0:01:30]} Rh6 {[%emt 0:12:51]} 31. Qf2 {[%emt 0:00:13]} Nf7 {[%emt 0:02:41]} 32. Nf1 {[%emt 0:03:15]} Qh5 {[%emt 0:02:14]} 33. Rad1 {[%emt 0:02:06]} Ne5 {[%emt 0:00:53]} 34. Bd6 {[%emt 0:04:01]} Nxf3 {[%emt 0:01:13]} 35. Bxf4 {[%emt 0:00:07]} Nxe1 {[%emt 0:01:54]} 36. Qxe1 {[%emt 0:00:05]} Rf6 {[%emt 0:02:34]} 37. Bg3 {[%emt 0:00:26]} Ref8 {[%emt 0:00:21]} 38. Ne3 {[%emt 0:00:14]} Rf3 {[%emt 0:02:18]} 39. Rc1 {[%emt 0:02:01]} R3f7 {[%emt 0:01:06]} 40. Qd2 {[%emt 0:00:58]} Rd7 {[%emt 0:00:40]} 41. Qe1 {[%emt 0:30:13]} Rd3 {[%emt 0:01:47]} 42. c4 {[%emt 0:00:00]} Rfd8 {[%emt 0:05:23]} 43. Kg1 {[%emt 0:00:00]} Qg5 {[%emt 0:00:29]} 44. Rc3 {[%emt 0:00:00]} Rxc3 {[%emt 0:04:34]} 45. Qxc3 {[%emt 0:00:00]} Qg6 {[%emt 0:00:14]} 46. Qe5 {[%emt 0:00:00]} Rf8 {[%emt 0:01:56]} 47. h3 {[%emt 0:00:00]} h5 {[%emt 0:04:19]} 48. Kh2 {[%emt 0:00:00]} Qe4 {[%emt 0:01:39]} 49. Qg5 {[%emt 0:00:00]} Rf5 {[%emt 0:01:25]} 50. Qd8+ {[%emt 0:00:00]} Kh7 {[%emt 0:00:00]} 51. Qd2 {[%emt 0:00:00]} Rg5 {[%emt 0:02:11]} 52. Qf2 {[%emt 0:00:00]} h4 {[%emt 0:03:12]} 53. Bf4 {[%emt 0:00:00]} Rh5 {[%emt 0:00:31]} 54. Bb8 {[%emt 0:00:00]} a6 {[%emt 0:01:42]} 55. Ng4 {[%emt 0:00:00]} b5 {[%emt 0:01:22]} 56. c5 {[%emt 0:00:00]} Qf5 {[%emt 0:00:43]} 57. Qxf5+ {[%emt 0:00:00]} Rxf5 {[%emt 0:01:09]} 58. Bd6 {[%emt 0:00:00]} Rd5 {[%emt 0:01:17]} 59. Ne5 {[%emt 0:00:00]} Ba8 {[%emt 0:00:29]} 60. Nf3 {[%emt 0:00:00]} Kh6 {[%emt 0:01:52]} 61. Nxh4 {[%emt 0:00:00]} e5 {[%emt 0:01:22]} 62. Nf5+ {[%emt 0:00:00]} Kg5 {[%emt 0:01:42]} 63. Ne3 {[%emt 0:00:00]} Rd3 {[%emt 0:00:39]} 64. Nf1 {[%emt 0:00:00]} e4 {[%emt 0:00:16]} 65. g3 {[%emt 0:00:00]} Rf3 {[%emt 0:00:18]} 66. Kg1 {[%emt 0:00:00]} Kf5 {[%emt 0:01:02]} 67. Bf4 {[%emt 0:00:12]} Rc3 {[%emt 0:00:38]} 68. Ne3+ {[%emt 0:01:05]} Ke6 {[%emt 0:00:24]} 69. b4 {[%emt 0:00:17]} Ra3 {[%emt 0:00:28]} 70. Nc2 {[%emt 0:01:09]} Rxa2 {[%emt 0:00:05]} 71. Nd4+ {[%emt 0:00:05]} Kd7 {[%emt 0:00:20]} 72. Nf5 {[%emt 0:00:26]} Ra1+ {[%emt 0:01:00]} 73. Kf2 {[%emt 0:00:15]} Rb1 {[%emt 0:01:01]} 74. Nxg7 {[%emt 0:00:34]} Rxb4 {[%emt 0:00:11]} 75. h4 {[%emt 0:00:43]} Rb2+ {[%emt 0:00:25]} 76. Ke3 {[%emt 0:00:11]} Rb3+ {[%emt 0:00:05]} 77. Kd2 {[%emt 0:00:37]} Rd3+ {[%emt 0:00:28]} 78. Kc2 {[%emt 0:00:18]} Bd5 79. h5 {[%emt 0:00:30]} Bb3+ {[%emt 0:00:51]} 80. Kc1 {[%emt 0:01:06]} e3 {[%emt 0:00:23]} 81. h6 {[%emt 0:00:04]} Rd1+ {[%emt 0:01:09]} 82. Kb2 {[%emt 0:00:12]} e2 {[%emt 0:00:23]} 83. c6+ {[%emt 0:00:41]} Kxc6 {[%emt 0:00:22]} 84. h7 {[%emt 0:00:34]} e1=Q {[%emt 0:00:11]} 85. h8=Q {[%emt 0:00:10]} Rb1+ {[%emt 0:00:10]} 86. Ka3 {[%emt 0:00:04]} Qa5# 0-1

[Event "EYTCC U12 Open 2019"]
[Site "Pardubice"]
[Date "2019.07.14"]
[Round "4.10"]
[White "Fizer, Marek"]
[Black "Celik, Hasan Huseyin"]
[Result "0-1"]
[ECO "D10"]
[WhiteElo "1624"]
[BlackElo "1903"]
[Annotator "NA"]
[PlyCount "88"]
[EventDate "2019.07.11"]
[EventType "swiss"]
[EventCountry "CZE"]
[SourceTitle "playchess.com"]
[Source "ChessBase"]
[SourceQuality "1"]
[WhiteTeam "Czech Republic"]
[BlackTeam "Turkey"]
[WhiteTeamCountry "CZE"]
[BlackTeamCountry "TUR"]
[TimeControl "40/5400+30:1800+30"]

1. d4 {[%emt 0:00:00]} d5 {[%emt 0:00:00]} 2. c4 {[%emt 0:00:00]} c6 {[%emt 0:00:00]} 3. Nc3 {[%emt 0:00:00]} dxc4 {[%emt 0:00:00]} 4. e4 {[%emt 0:00:14]} b5 {[%emt 0:00:07]} 5. a4 {[%emt 0:01:59]} b4 {[%emt 0:00:05]} 6. Na2 {[%emt 0:01:19]} Nf6 {[%emt 0:00:06]} 7. Bxc4 {[%emt 0:02:02]} Nxe4 {[%emt 0:02:34]} 8. Nf3 {[%emt 0:04:12]} e6 {[%emt 0:02:24]} 9. O-O {[%emt 0:00:52]} Be7 {[%emt 0:00:13]} 10. Be3 {[%emt 0:08:01]} a5 {[%emt 0:01:56]} 11. Ne5 {[%emt 0:01:23]} O-O {[%emt 0:05:22]} 12. Qf3 {[%emt 0:04:27]} Nf6 {[%emt 0:00:21]} 13. Bb5 {[%emt 0:06:13]} Bb7 {[%emt 0:04:35]} 14. Rfc1 {[%emt 0:03:52]} Nd5 {[%emt 0:01:14]} 15. Bd3 {[%emt 0:03:05]} Bf6 {[%emt 0:06:27]} 16. Ng4 {[%emt 0:18:21]} Nxe3 {[%emt 0:05:00]} 17. fxe3 {[%emt 0:00:36]} Nd7 {[%emt 0:01:34]} 18. Rf1 {[%emt 0:03:00]} Ba6 {[%emt 0:02:29]} 19. Nc1 {[%emt 0:03:36]} Bxd3 20. Nxd3 {[%emt 0:00:10]} Rc8 {[%emt 0:01:32]} 21. Rac1 {[%emt 0:01:07]} Bg5 {[%emt 0:16:09]} 22. Nge5 {[%emt 0:02:33]} Nxe5 {[%emt 0:00:09]} 23. Nxe5 {[%emt 0:00:25]} c5 {[%emt 0:00:33]} 24. Rxc5 {[%emt 0:05:58]} Rxc5 {[%emt 0:00:14]} 25. dxc5 {[%emt 0:00:03]} Qd5 {[%emt 0:00:37]} 26. Qxd5 {[%emt 0:02:32]} Bxe3+ {[%emt 0:00:08]} 27. Kh1 {[%emt 0:00:07]} exd5 {[%emt 0:00:05]} 28. Rd1 {[%emt 0:01:00]} f6 {[%emt 0:08:35]} 29. Nd7 {[%emt 0:04:21]} Re8 {[%emt 0:00:10]} 30. h3 {[%emt 0:05:18]} d4 {[%emt 0:00:36]} 31. g3 {[%emt 0:09:12]} Rc8 {[%emt 0:00:12]} 32. b3 {[%emt 0:01:08]} Rc7 {[%emt 0:00:17]} 33. Nb6 {[%emt 0:00:20]} Rxc5 {[%emt 0:00:15]} 34. Nc4 {[%emt 0:00:14]} Kf7 {[%emt 0:03:43]} 35. Kg2 {[%emt 0:01:16]} Kg6 {[%emt 0:00:53]} 36. Kf3 {[%emt 0:01:00]} h5 {[%emt 0:00:37]} 37. Nxe3 {[%emt 0:02:06]} dxe3 {[%emt 0:00:01]} 38. Kxe3 {[%emt 0:00:09]} Rc3+ {[%emt 0:00:59]} 39. Rd3 {[%emt 0:01:12]} Rxd3+ {[%emt 0:00:01]} 40. Kxd3 {[%emt 0:00:10]} h4 {[%emt 0:00:13]} 41. g4 {[%emt 0:31:01]} f5 {[%emt 0:30:06]} 42. gxf5+ {[%emt 0:01:41]} Kxf5 {[%emt 0:00:02]} 43. Ke3 {[%emt 0:00:26]} g5 {[%emt 0:00:13]} 44. Kf3 {[%emt 0:00:08]} g4+ {[%emt 0:00:04]} 0-1

[Event "EYTCC U12 Open 2019"]
[Site "Pardubice"]
[Date "2019.07.14"]
[Round "4.11"]
[White "Portakalci, Yusuf"]
[Black "Lang, Simon"]
[Result "1-0"]
[ECO "A60"]
[WhiteElo "1764"]
[BlackElo "1506"]
[Annotator "NA"]
[PlyCount "67"]
[EventDate "2019.07.11"]
[EventType "swiss"]
[EventCountry "CZE"]
[SourceTitle "playchess.com"]
[Source "ChessBase"]
[SourceQuality "1"]
[WhiteTeam "Turkey"]
[BlackTeam "Czech Republic"]
[WhiteTeamCountry "TUR"]
[BlackTeamCountry "CZE"]
[TimeControl "40/5400+30:1800+30"]

1. d4 {[%emt 0:00:00]} Nf6 {[%emt 0:00:06]} 2. c4 {[%emt 0:00:00]} c5 {[%emt 0:00:58]} 3. d5 {[%emt 0:00:17]} e6 {[%emt 0:01:09]} 4. Nc3 {[%emt 0:00:56]} a6 {[%emt 0:01:57]} 5. a4 {[%emt 0:00:54]} d6 {[%emt 0:03:41]} 6. e4 {[%emt 0:01:36]} Be7 {[%emt 0:02:17]} 7. Nf3 {[%emt 0:03:29]} O-O {[%emt 0:03:08]} 8. Bd3 {[%emt 0:02:05]} e5 {[%emt 0:05:02]} 9. O-O {[%emt 0:02:00]} Bg4 {[%emt 0:03:33]} 10. h3 {[%emt 0:01:36]} Bh5 {[%emt 0:01:15]} 11. Be3 {[%emt 0:02:52]} Nbd7 {[%emt 0:04:22]} 12. Be2 {[%emt 0:05:21]} Nb6 {[%emt 0:05:04]} 13. Nd2 {[%emt 0:04:47]} Bxe2 {[%emt 0:03:47]} 14. Qxe2 {[%emt 0:03:45]} Nfd7 {[%emt 0:23:06]} 15. a5 {[%emt 0:14:46]} Nc8 16. Rfb1 {[%emt 0:00:36]} Na7 {[%emt 0:01:20]} 17. b4 {[%emt 0:02:27]} Rb8 {[%emt 0:03:53]} 18. bxc5 {[%emt 0:01:39]} dxc5 {[%emt 0:02:06]} 19. Na4 {[%emt 0:02:41]} f5 {[%emt 0:03:49]} 20. exf5 {[%emt 0:01:01]} Rxf5 {[%emt 0:00:32]} 21. Ne4 {[%emt 0:00:39]} Qf8 {[%emt 0:02:14]} 22. Ra3 {[%emt 0:05:21]} Nc8 {[%emt 0:02:26]} 23. Rab3 {[%emt 0:01:27]} Nd6 {[%emt 0:01:17]} 24. Naxc5 {[%emt 0:04:31]} Nxc5 {[%emt 0:04:06]} 25. Nxc5 {[%emt 0:00:19]} Rc8 {[%emt 0:02:28]} 26. Ne6 {[%emt 0:08:09]} Qf7 {[%emt 0:01:04]} 27. Rc1 {[%emt 0:02:20]} Bh4 {[%emt 0:02:44]} 28. g3 {[%emt 0:08:31]} Be7 {[%emt 0:06:04]} 29. c5 {[%emt 0:03:41]} Ne4 {[%emt 0:01:52]} 30. Rxb7 {[%emt 0:02:28]} Rf3 {[%emt 0:01:23]} 31. Rxe7 {[%emt 0:01:08]} Qh5 {[%emt 0:01:33]} 32. Rxg7+ {[%emt 0:00:15]} Kh8 {[%emt 0:00:07]} 33. Rg4 {[%emt 0:01:37]} Nxg3 {[%emt 0:01:53]} 34. Qxf3 {[%emt 0:00:24]} 1-0

[Event "EYTCC U12 Open 2019"]
[Site "Pardubice"]
[Date "2019.07.14"]
[Round "4.12"]
[White "Buchta, Bartolomej"]
[Black "Durak, Can"]
[Result "1/2-1/2"]
[ECO "B33"]
[WhiteElo "1585"]
[BlackElo "1753"]
[Annotator "NA"]
[PlyCount "72"]
[EventDate "2019.07.11"]
[EventType "swiss"]
[EventCountry "CZE"]
[SourceTitle "playchess.com"]
[Source "ChessBase"]
[SourceQuality "1"]
[WhiteTeam "Czech Republic"]
[BlackTeam "Turkey"]
[WhiteTeamCountry "CZE"]
[BlackTeamCountry "TUR"]
[TimeControl "40/5400+30:1800+30"]

1. e4 {[%emt 0:00:00]} c5 {[%emt 0:00:00]} 2. Nf3 {[%emt 0:00:00]} Nc6 {[%emt 0:00:15]} 3. d4 {[%emt 0:00:00]} cxd4 {[%emt 0:00:03]} 4. Nxd4 {[%emt 0:00:00]} Nf6 {[%emt 0:00:08]} 5. Nc3 {[%emt 0:00:10]} g6 {[%emt 0:00:14]} 6. Nxc6 {[%emt 0:00:27]} bxc6 {[%emt 0:00:49]} 7. e5 {[%emt 0:00:08]} Ng8 {[%emt 0:01:13]} 8. Bc4 {[%emt 0:00:24]} Bg7 {[%emt 0:00:34]} 9. O-O {[%emt 0:00:14]} Bxe5 {[%emt 0:08:08]} 10. Re1 {[%emt 0:00:08]} Bxc3 {[%emt 0:18:39]} 11. bxc3 {[%emt 0:00:54]} d5 {[%emt 0:03:36]} 12. Qd4 {[%emt 0:07:57]} f6 {[%emt 0:00:20]} 13. Bd3 {[%emt 0:07:11]} Kf7 {[%emt 0:06:11]} 14. Rb1 {[%emt 0:09:32]} Qa5 {[%emt 0:07:11]} 15. Bd2 {[%emt 0:04:03]} e5 {[%emt 0:03:25]} 16. Qe3 {[%emt 0:02:12]} Ne7 {[%emt 0:06:56]} 17. c4 {[%emt 0:03:08]} Qd8 {[%emt 0:02:46]} 18. Qc5 {[%emt 0:12:18]} Qd7 {[%emt 0:11:58]} 19. cxd5 {[%emt 0:02:43]} Nxd5 {[%emt 0:00:25]} 20. Be4 {[%emt 0:09:02]} Ba6 {[%emt 0:06:36]} 21. Rbd1 {[%emt 0:07:05]} Rac8 {[%emt 0:05:26]} 22. f4 {[%emt 0:04:58]} f5 {[%emt 0:02:57]} 23. Bxd5+ {[%emt 0:04:02]} cxd5 {[%emt 0:00:08]} 24. Qa5 {[%emt 0:00:11]} Qb5 {[%emt 0:00:09]} 25. Qxb5 {[%emt 0:02:22]} Bxb5 {[%emt 0:00:07]} 26. Rxe5 {[%emt 0:00:17]} Bc4 {[%emt 0:00:56]} 27. a4 {[%emt 0:04:21]} Rb8 {[%emt 0:02:28]} 28. Rde1 {[%emt 0:01:05]} Rhe8 {[%emt 0:00:05]} 29. Rxe8 {[%emt 0:04:32]} Rxe8 {[%emt 0:00:06]} 30. Rxe8 {[%emt 0:02:13]} Kxe8 {[%emt 0:00:08]} 31. Kf2 {[%emt 0:02:34]} d4 {[%emt 0:01:20]} 32. Bb4 {[%emt 0:00:32]} d3 {[%emt 0:00:07]} 33. cxd3 {[%emt 0:00:14]} Bxd3 {[%emt 0:00:05]} 34. Ke3 {[%emt 0:00:29]} Be4 {[%emt 0:00:04]} 35. g3 {[%emt 0:00:18]} Bc6 {[%emt 0:00:02]} 36. a5 {[%emt 0:00:14]} a6 {[%emt 0:00:05] Ke4} 1/2-1/2